fUSD/lending_fUSD_20260605
["ID","MTS","AMOUNT","RATE_DAILY","PERIOD"]
[424143803,1780609849000,-1773.0,0.00036164,2]
[424143795,1780609849000,-5000.0,0.00036141,2]
[424143797,1780609849000,-5000.0,0.00036141,2]
[424143802,1780609849000,-504.0,0.00036162,11]
[424143796,1780609849000,-5000.0,0.00036141,2]
[424143792,1780609849000,-152.0,0.00036139,30]
[424143799,1780609849000,-161.93,0.00036145,60]
[424143801,1780609849000,-4520.1006,0.00036155,2]
[424143841,1780609849000,-161.93,0.00036245,60]
[424143887,1780609849000,-186.04151345,0.00036814,2]
[424143838,1780609849000,-1541.829306,0.00036195,28]
[424143877,1780609849000,-237.58,0.0003678,120]
[424143876,1780609849000,-161.94161219,0.00036745,60]
[424143870,1780609849000,-251.4276,0.00036654,2]
[424143868,1780609849000,-161.93,0.00036645,60]
[424143872,1780609849000,-414.5741,0.00036654,2]
[424143869,1780609849000,-2000.0,0.0003665,3]
[424143873,1780609849000,-151.27276028,0.00036692,2]
[424143867,1780609849000,-624.0,0.00036629,3]
[424143871,1780609849000,-4520.1014,0.00036654,2]
[424143875,1780609849000,-737.98,0.00036706,7]
[424143874,1780609849000,-573.98,0.00036706,7]
[424143881,1780609849000,-8544.81739266,0.000368,30]
[424143866,1780609849000,-1592.0,0.00036573,11]
[424143882,1780609849000,-8544.81739265,0.000368,30]
[424143879,1780609849000,-2819.86622047,0.000368,30]
[424143883,1780609849000,-8544.81739265,0.000368,30]
[424143884,1780609849000,-245.91458161,0.000368,30]
[424143886,1780609849000,-249.96340179,0.00036814,2]
[424143889,1780609849000,-236.4667911,0.00036831,120]
[424143888,1780609849000,-184.6368026,0.00036831,120]
[424143885,1780609849000,-504.0,0.00036807,12]
[424143891,1780609849000,-967.8691091,0.00036831,120]
[424143892,1780609849000,-151.8478076,0.00036831,120]
[424143893,1780609849000,-500.0,0.00036831,120]
[424143890,1780609849000,-719.0682451,0.00036831,120]
[424143835,1780609849000,-1541.829306,0.00036195,28]
[424143880,1780609849000,-2819.86622047,0.000368,30]
[424143859,1780609849000,-500.0,0.00036456,60]
[424143878,1780609849000,-2819.86622049,0.000368,30]
[424143858,1780609849000,-900.0,0.00036456,60]
[424143861,1780609849000,-200.0,0.00036457,2]
[424143836,1780609849000,-1541.829306,0.00036195,28]
[424143833,1780609849000,-256.57751,0.00036195,30]
[424143832,1780609849000,-256.57751,0.00036195,30]
[424143839,1780609849000,-2000.0,0.00036198,16]
[424143837,1780609849000,-1541.829306,0.00036195,28]
[424143843,1780609849000,-2000.0,0.00036338,114]
[424143853,1780609849000,-1688.67,0.00036407,7]
[424143842,1780609849000,-4520.1006,0.0003628,2]
[424143844,1780609849000,-237.58,0.0003634,114]
[424143848,1780609849000,-2460.54247189,0.00036369,7]
[424143852,1780609849000,-4520.1006,0.00036404,2]
[424143845,1780609849000,-4932.1,0.00036342,2]
[424143849,1780609849000,-235.99516007,0.00036395,60]
[424143834,1780609849000,-256.57751,0.00036195,30]
[424143865,1780609849000,-161.93,0.00036545,60]
[424143847,1780609849000,-161.93,0.00036345,60]
[424143860,1780609849000,-500.0,0.00036456,60]
[424143862,1780609849000,-200.0,0.000365,14]
[424143857,1780609849000,-161.93,0.00036445,60]
[424143864,1780609849000,-4520.1006,0.00036529,2]
[424143863,1780609849000,-573.98,0.00036522,7]
[424143856,1780609849000,-864.52,0.0003644,5]
[424143854,1780609849000,-259.35,0.0003644,5]
[424143851,1780609849000,-16384.0,0.000364,30]
[424143846,1780609849000,-889.17,0.00036342,7]
[424143850,1780609849000,-168.54502257,0.00036395,60]
[424143855,1780609849000,-605.16,0.0003644,5]
[424143928,1780609850000,-1592.0,0.00036974,11]
[424143927,1780609850000,-210.78,0.00036971,5]
[424143929,1780609850000,-2320.0,0.00036978,11]
[424143932,1780609850000,-2000.0,0.00036987,120]
[424143926,1780609850000,-150.0,0.00036971,5]
[424143925,1780609850000,-2000.0,0.0003697,11]
[424143937,1780609850000,-578.20924308,0.00036987,120]
[424143934,1780609850000,-518.5,0.00036987,120]
[424143933,1780609850000,-500.0,0.00036987,120]
[424143935,1780609850000,-537.6845,0.00036987,120]
[424143931,1780609850000,-150.00000002,0.00036987,120]
[424143936,1780609850000,-557.5788265,0.00036987,120]
[424143930,1780609850000,-1098.0,0.00036978,11]
[424143947,1780609850000,-151.0,0.00036987,120]
[424143939,1780609850000,-621.78829552,0.00036987,120]
[424143950,1780609850000,-251.0,0.00036987,120]
[424143938,1780609850000,-599.60298507,0.00036987,120]
[424143940,1780609850000,-644.79446245,0.00036987,120]
[424143952,1780609850000,-2105.54781564,0.00036987,120]
[424143944,1780609850000,-745.65223615,0.00036987,120]
[424143942,1780609850000,-693.39197629,0.00036987,120]
[424143946,1780609850000,-278.07310317,0.00036987,120]
[424143948,1780609850000,-151.0,0.00036987,120]
[424143941,1780609850000,-668.65185756,0.00036987,120]
[424143945,1780609850000,-773.24136889,0.00036987,120]
[424143951,1780609850000,-151.0,0.00036987,120]
[424143949,1780609850000,-300.0,0.00036987,120]
[424143924,1780609850000,-1000.0,0.0003697,2]
[424143899,1780609850000,-162.5045091,0.00036831,120]
[424143923,1780609850000,-500.0,0.0003697,2]
[424143901,1780609850000,-500.0,0.00036831,120]
[424143894,1780609850000,-562.9797939,0.00036831,120]
[424143900,1780609850000,-554.4033122,0.00036831,120]
[424143895,1780609850000,-924.8490196,0.00036831,120]
[424143897,1780609850000,-891.1008482,0.00036831,120]
[424143896,1780609850000,-500.0,0.00036831,120]
[424143898,1780609850000,-351.7175534,0.00036831,120]
[424143902,1780609850000,-500.0,0.00036831,120]
[424143904,1780609850000,-242.963508,0.00036831,120]
[424143908,1780609850000,-355.86933294,0.00036846,14]
[424143903,1780609850000,-890.499109,0.00036831,120]
[424143907,1780609850000,-791.896713,0.00036831,120]
[424143909,1780609850000,-350.0,0.00036876,2]
[424143906,1780609850000,-500.0,0.00036831,120]
[424143905,1780609850000,-500.0,0.00036831,120]
[424143910,1780609850000,-573.98,0.00036891,7]
[424143911,1780609850000,-350.0,0.00036897,2]
[424143912,1780609850000,-2000.0,0.00036899,7]
[424143913,1780609850000,-200.0,0.000369,13]
[424143914,1780609850000,-2000.0,0.00036903,12]
[424143916,1780609850000,-350.0,0.00036932,42]
[424143918,1780609850000,-2320.0,0.0003694,11]
[424143919,1780609850000,-2000.0,0.0003694,2]
[424143917,1780609850000,-1592.0,0.00036935,11]
[424143921,1780609850000,-2000.0,0.00036944,60]
[424143920,1780609850000,-2320.0,0.00036942,11]
[424143915,1780609850000,-2000.0,0.00036918,30]
[424143922,1780609850000,-2320.0,0.00036949,11]
[424143962,1780609850000,-156.587,0.00036987,120]
[424143943,1780609850000,-719.04747942,0.00036987,120]
[424143960,1780609850000,-10000.0,0.00036987,120]
[424143988,1780609850000,-200.0,0.00036987,120]
[424143989,1780609850000,-279.9045709,0.00036987,120]
[424143999,1780609850000,-151.0,0.00036987,120]
[424143990,1780609850000,-1000.0,0.00036987,120]
[424143993,1780609850000,-168.3888056,0.00036987,120]
[424143991,1780609850000,-620.0,0.00036987,120]
[424143992,1780609850000,-500.0,0.00036987,120]
[424143994,1780609850000,-500.0,0.00036987,120]
[424143997,1780609850000,-518.5,0.00036987,120]
[424143996,1780609850000,-200.0,0.00036987,120]
[424143995,1780609850000,-156.587,0.00036987,120]
[424143998,1780609850000,-168.3888056,0.00036987,120]
[424144000,1780609850000,-346.92554584,0.00036987,120]
[424144002,1780609850000,-220.0,0.00036987,120]
[424144001,1780609850000,-151.0,0.00036987,120]
[424144003,1780609850000,-151.0,0.00036987,120]
[424144011,1780609850000,-1000.0,0.00036987,120]
[424144004,1780609850000,-559.19188,0.00036987,120]
[424144012,1780609850000,-500.0,0.00036987,120]
[424144007,1780609850000,-200.0,0.00036987,120]
[424144009,1780609850000,-290.26104002,0.00036987,120]
[424144008,1780609850000,-183.36251582,0.00036987,120]
[424144005,1780609850000,-200.0,0.00036987,120]
[424144006,1780609850000,-518.5,0.00036987,120]
[424144010,1780609850000,-642.94,0.00036987,120]
[424144013,1780609850000,-174.61919141,0.00036987,120]
[424143954,1780609850000,-151.0,0.00036987,120]
[424143983,1780609850000,-334.5472959,0.00036987,120]
[424143982,1780609850000,-151.0,0.00036987,120]
[424144014,1780609850000,-6888.0,0.00036987,120]
[424143980,1780609850000,-162.380719,0.00036987,120]
[424143961,1780609850000,-200.0,0.00036987,120]
[424143956,1780609850000,-151.0,0.00036987,120]
[424143955,1780609850000,-151.0,0.00036987,120]
[424143957,1780609850000,-311.1,0.00036987,120]
[424143958,1780609850000,-260.287,0.00036987,120]
[424143953,1780609850000,-220.0,0.00036987,120]
[424143959,1780609850000,-156.587,0.00036987,120]
[424143964,1780609850000,-151.0,0.00036987,120]
[424143987,1780609850000,-200.0,0.00036987,120]
[424143963,1780609850000,-220.0,0.00036987,120]
[424143966,1780609850000,-151.0,0.00036987,120]
[424143970,1780609850000,-269.917619,0.00036987,120]
[424143968,1780609850000,-520.0,0.00036987,120]
[424143972,1780609850000,-151.0,0.00036987,120]
[424143974,1780609850000,-500.0,0.00036987,120]
[424143967,1780609850000,-322.6107,0.00036987,120]
[424143985,1780609850000,-500.0,0.00036987,120]
[424143965,1780609850000,-151.0,0.00036987,120]
[424143984,1780609850000,-151.0,0.00036987,120]
[424143986,1780609850000,-539.24,0.00036987,120]
[424143979,1780609850000,-220.0,0.00036987,120]
[424143978,1780609850000,-500.0,0.00036987,120]
[424143981,1780609850000,-151.0,0.00036987,120]
[424143976,1780609850000,-200.0,0.00036987,120]
[424143975,1780609850000,-1765.50679593,0.00036987,120]
[424143973,1780609850000,-162.380719,0.00036987,120]
[424143971,1780609850000,-1000.0,0.00036987,120]
[424143969,1780609850000,-200.0,0.00036987,120]
[424143977,1780609850000,-151.0,0.00036987,120]
[424144052,1780609851000,-151.0,0.00036987,120]
[424144062,1780609851000,-1000.0,0.00036987,120]
[424144055,1780609851000,-200.0,0.00036987,120]
[424144051,1780609851000,-151.0,0.00036987,120]
[424144045,1780609851000,-160.0,0.00036987,120]
[424144053,1780609851000,-156.587,0.00036987,120]
[424144049,1780609851000,-200.0,0.00036987,120]
[424144054,1780609851000,-220.0,0.00036987,120]
[424144050,1780609851000,-152.0,0.00036987,120]
[424144047,1780609851000,-151.0,0.00036987,120]
[424144048,1780609851000,-601.3376128,0.00036987,120]
[424144059,1780609851000,-312.13772435,0.00036987,120]
[424144078,1780609851000,-152.0,0.00036987,120]
[424144066,1780609851000,-7407.141672,0.00036987,120]
[424144067,1780609851000,-162.380719,0.00036987,120]
[424144061,1780609851000,-200.0,0.00036987,120]
[424144064,1780609851000,-187.78006524,0.00036987,120]
[424144065,1780609851000,-578.20924308,0.00036987,120]
[424144058,1780609851000,-691.39774486,0.00036987,120]
[424144063,1780609851000,-500.0,0.00036987,120]
[424144060,1780609851000,-151.0,0.00036987,120]
[424144081,1780609851000,-578.20924308,0.00036987,120]
[424144079,1780609851000,-200.0,0.00036987,120]
[424144076,1780609851000,-156.587,0.00036987,120]
[424144072,1780609851000,-557.5788265,0.00036987,120]
[424144056,1780609851000,-557.5788265,0.00036987,120]
[424144057,1780609851000,-151.0,0.00036987,120]
[424144046,1780609851000,-200.0,0.00036987,120]
[424144028,1780609851000,-152.0,0.00036987,120]
[424144039,1780609851000,-557.5788265,0.00036987,120]
[424144077,1780609851000,-162.380719,0.00036987,120]
[424144018,1780609851000,-518.5,0.00036987,120]
[424144019,1780609851000,-151.0,0.00036987,120]
[424144016,1780609851000,-162.380719,0.00036987,120]
[424144015,1780609851000,-537.6845,0.00036987,120]
[424144017,1780609851000,-500.0,0.00036987,120]
[424144021,1780609851000,-174.61919141,0.00036987,120]
[424144031,1780609851000,-200.0,0.00036987,120]
[424144020,1780609851000,-160.0,0.00036987,120]
[424144022,1780609851000,-348.04103361,0.00036987,120]
[424144024,1780609851000,-151.0,0.00036987,120]
[424144025,1780609851000,-151.0,0.00036987,120]
[424144026,1780609851000,-579.88197956,0.00036987,120]
[424144027,1780609851000,-200.0,0.00036987,120]
[424144029,1780609851000,-151.0,0.00036987,120]
[424144030,1780609851000,-220.0,0.00036987,120]
[424144043,1780609851000,-537.6845,0.00036987,120]
[424144033,1780609851000,-301.0006985,0.00036987,120]
[424144044,1780609851000,-181.08010149,0.00036987,120]
[424144032,1780609851000,-537.6845,0.00036987,120]
[424144034,1780609851000,-151.0,0.00036987,120]
[424144035,1780609851000,-666.72878,0.00036987,120]
[424144036,1780609851000,-1000.0,0.00036987,120]
[424144038,1780609851000,-181.08010149,0.00036987,120]
[424144037,1780609851000,-500.0,0.00036987,120]
[424144042,1780609851000,-156.587,0.00036987,120]
[424144040,1780609851000,-7142.856,0.00036987,120]
[424144041,1780609851000,-500.0,0.00036987,120]
[424144074,1780609851000,-200.0,0.00036987,120]
[424144023,1780609851000,-200.0,0.00036987,120]
[424144068,1780609851000,-168.3888056,0.00036987,120]
[424144110,1780609851000,-716.97946141,0.00036987,120]
[424144114,1780609851000,-151.0,0.00036987,120]
[424144108,1780609851000,-168.3888056,0.00036987,120]
[424144112,1780609851000,-335.66323249,0.00036987,120]
[424144113,1780609851000,-1000.0,0.00036987,120]
[424144120,1780609851000,-7965.41053267,0.00036987,120]
[424144119,1780609851000,-201.93286098,0.00036987,120]
[424144116,1780609851000,-200.0,0.00036987,120]
[424144117,1780609851000,-201.93286098,0.00036987,120]
[424144111,1780609851000,-500.0,0.00036987,120]
[424144115,1780609851000,-151.0,0.00036987,120]
[424144109,1780609851000,-151.0,0.00036987,120]
[424144118,1780609851000,-621.78829552,0.00036987,120]
[424144123,1780609851000,-599.60298507,0.00036987,120]
[424144127,1780609851000,-200.0,0.00036987,120]
[424144126,1780609851000,-154.85888614,0.00036987,120]
[424144125,1780609851000,-152.0,0.00036987,120]
[424144134,1780609851000,-1000.0,0.00036987,120]
[424144132,1780609851000,-621.78829552,0.00036987,120]
[424144128,1780609851000,-743.50770149,0.00036987,120]
[424144131,1780609851000,-151.0,0.00036987,120]
[424144122,1780609851000,-160.0,0.00036987,120]
[424144121,1780609851000,-237.53189445,0.00036987,120]
[424144133,1780609851000,-200.0,0.00036987,120]
[424144124,1780609851000,-500.0,0.00036987,120]
[424144129,1780609851000,-168.3888056,0.00036987,120]
[424144075,1780609851000,-623.58710447,0.00036987,120]
[424144107,1780609851000,-220.0,0.00036987,120]
[424144100,1780609851000,-500.0,0.00036987,120]
[424144130,1780609851000,-174.61919141,0.00036987,120]
[424144101,1780609851000,-200.0,0.00036987,120]
[424144102,1780609851000,-162.380719,0.00036987,120]
[424144070,1780609851000,-187.78006524,0.00036987,120]
[424144071,1780609851000,-200.0,0.00036987,120]
[424144073,1780609851000,-160.0,0.00036987,120]
[424144069,1780609851000,-500.0,0.00036987,120]
[424144082,1780609851000,-220.0,0.00036987,120]
[424144083,1780609851000,-151.0,0.00036987,120]
[424144084,1780609851000,-323.68682015,0.00036987,120]
[424144092,1780609851000,-168.3888056,0.00036987,120]
[424144087,1780609851000,-500.0,0.00036987,120]
[424144088,1780609851000,-200.0,0.00036987,120]
[424144089,1780609851000,-599.60298507,0.00036987,120]
[424144091,1780609851000,-194.72792766,0.00036987,120]
[424144080,1780609851000,-151.0,0.00036987,120]
[424144085,1780609851000,-151.0,0.00036987,120]
[424144090,1780609851000,-151.0,0.00036987,120]
[424144105,1780609851000,-151.0,0.00036987,120]
[424144099,1780609851000,-160.0,0.00036987,120]
[424144098,1780609851000,-646.65982734,0.00036987,120]
[424144103,1780609851000,-152.0,0.00036987,120]
[424144106,1780609851000,-599.60298507,0.00036987,120]
[424144097,1780609851000,-578.20924308,0.00036987,120]
[424144086,1780609851000,-1000.0,0.00036987,120]
[424144095,1780609851000,-194.72792766,0.00036987,120]
[424144104,1780609851000,-200.0,0.00036987,120]
[424144094,1780609851000,-7681.20591386,0.00036987,120]
[424144096,1780609851000,-200.0,0.00036987,120]
[424144093,1780609851000,-172.14832771,0.00036987,120]
[424144166,1780609852000,-217.15233878,0.00036987,120]
[424144172,1780609852000,-152.0,0.00036987,120]
[424144165,1780609852000,-1011.60119079,0.00036987,120]
[424144162,1780609852000,-151.0,0.00036987,120]
[424144164,1780609852000,-668.65185756,0.00036987,120]
[424144168,1780609852000,-200.0,0.00036987,120]
[424144163,1780609852000,-151.0,0.00036987,120]
[424144171,1780609852000,-500.0,0.00036987,120]
[424144181,1780609852000,-200.0,0.00036987,120]
[424144170,1780609852000,-644.79446245,0.00036987,120]
[424144161,1780609852000,-360.96183466,0.00036987,120]
[424144173,1780609852000,-8565.75555911,0.00036987,120]
[424144180,1780609852000,-151.0,0.00036987,120]
[424144175,1780609852000,-258.00865119,0.00036987,120]
[424144179,1780609852000,-500.0,0.00036987,120]
[424144174,1780609852000,-200.0,0.00036987,120]
[424144178,1780609852000,-181.08010149,0.00036987,120]
[424144177,1780609852000,-695.39793187,0.00036987,120]
[424144191,1780609852000,-500.0,0.00036987,120]
[424144195,1780609852000,-225.18697532,0.00036987,120]
[424144194,1780609852000,-200.0,0.00036987,120]
[424144190,1780609852000,-200.0,0.00036987,120]
[424144169,1780609852000,-161.32540994,0.00036987,120]
[424144176,1780609852000,-799.54513344,0.00036987,120]
[424144159,1780609852000,-500.0,0.00036987,120]
[424144149,1780609852000,-200.0,0.00036987,120]
[424144160,1780609852000,-220.0,0.00036987,120]
[424144192,1780609852000,-8882.6885148,0.00036987,120]
[424144135,1780609852000,-500.0,0.00036987,120]
[424144141,1780609852000,-200.0,0.00036987,120]
[424144142,1780609852000,-209.40437684,0.00036987,120]
[424144137,1780609852000,-348.0827721,0.00036987,120]
[424144139,1780609852000,-151.0,0.00036987,120]
[424144136,1780609852000,-220.0,0.00036987,120]
[424144143,1780609852000,-209.40437684,0.00036987,120]
[424144144,1780609852000,-8260.13072238,0.00036987,120]
[424144145,1780609852000,-160.0,0.00036987,120]
[424144140,1780609852000,-644.79446245,0.00036987,120]
[424144167,1780609852000,-217.15233878,0.00036987,120]
[424144138,1780609852000,-151.0,0.00036987,120]
[424144148,1780609852000,-152.0,0.00036987,120]
[424144150,1780609852000,-771.01748644,0.00036987,120]
[424144152,1780609852000,-174.61919141,0.00036987,120]
[424144158,1780609852000,-174.61919141,0.00036987,120]
[424144156,1780609852000,-500.0,0.00036987,120]
[424144151,1780609852000,-181.08010149,0.00036987,120]
[424144157,1780609852000,-151.0,0.00036987,120]
[424144153,1780609852000,-670.58624095,0.00036987,120]
[424144155,1780609852000,-644.79446245,0.00036987,120]
[424144147,1780609852000,-500.0,0.00036987,120]
[424144154,1780609852000,-200.0,0.00036987,120]
[424144146,1780609852000,-621.78829552,0.00036987,120]
[424144182,1780609852000,-181.08010149,0.00036987,120]
[424144183,1780609852000,-500.0,0.00036987,120]
[424144184,1780609852000,-668.65185756,0.00036987,120]
[424144211,1780609852000,-200.0,0.00036987,120]
[424144210,1780609852000,-187.78006524,0.00036987,120]
[424144215,1780609852000,-747.80937859,0.00036987,120]
[424144223,1780609852000,-307.05311869,0.00036987,120]
[424144224,1780609852000,-200.0,0.00036987,120]
[424144222,1780609852000,-719.04747942,0.00036987,120]
[424144231,1780609852000,-152.0,0.00036987,120]
[424144225,1780609852000,-242.15909246,0.00036987,120]
[424144226,1780609852000,-151.0,0.00036987,120]
[424144229,1780609852000,-200.0,0.00036987,120]
[424144230,1780609852000,-194.72792766,0.00036987,120]
[424144227,1780609852000,-745.65223615,0.00036987,120]
[424144233,1780609852000,-500.0,0.00036987,120]
[424144232,1780609852000,-200.0,0.00036987,120]
[424144235,1780609852000,-242.15909246,0.00036987,120]
[424144237,1780609852000,-201.93286098,0.00036987,120]
[424144240,1780609852000,-500.0,0.00036987,120]
[424144234,1780609852000,-775.4783256,0.00036987,120]
[424144241,1780609852000,-745.65223615,0.00036987,120]
[424144236,1780609852000,-891.61887448,0.00036987,120]
[424144239,1780609852000,-151.0,0.00036987,120]
[424144238,1780609852000,-500.0,0.00036987,120]
[424144193,1780609852000,-152.0,0.00036987,120]
[424144214,1780609852000,-500.0,0.00036987,120]
[424144212,1780609852000,-152.0,0.00036987,120]
[424144228,1780609852000,-151.0,0.00036987,120]
[424144220,1780609852000,-194.72792766,0.00036987,120]
[424144188,1780609852000,-225.18697532,0.00036987,120]
[424144213,1780609852000,-233.5188934,0.00036987,120]
[424144187,1780609852000,-151.0,0.00036987,120]
[424144189,1780609852000,-693.39197629,0.00036987,120]
[424144186,1780609852000,-151.0,0.00036987,120]
[424144185,1780609852000,-374.31742255,0.00036987,120]
[424144196,1780609852000,-721.12765534,0.00036987,120]
[424144198,1780609852000,-500.0,0.00036987,120]
[424144201,1780609852000,-500.0,0.00036987,120]
[424144197,1780609852000,-829.12830338,0.00036987,120]
[424144207,1780609852000,-233.5188934,0.00036987,120]
[424144200,1780609852000,-187.78006524,0.00036987,120]
[424144199,1780609852000,-151.0,0.00036987,120]
[424144219,1780609852000,-151.0,0.00036987,120]
[424144221,1780609852000,-500.0,0.00036987,120]
[424144203,1780609852000,-200.0,0.00036987,120]
[424144208,1780609852000,-719.04747942,0.00036987,120]
[424144209,1780609852000,-200.0,0.00036987,120]
[424144218,1780609852000,-500.0,0.00036987,120]
[424144217,1780609852000,-859.8060506,0.00036987,120]
[424144206,1780609852000,-151.0,0.00036987,120]
[424144205,1780609852000,-151.0,0.00036987,120]
[424144202,1780609852000,-693.39197629,0.00036987,120]
[424144204,1780609852000,-388.16716718,0.00036987,120]
[424144216,1780609852000,-8276.44060062,0.00036987,120]
[424144273,1780609853000,-209.40437684,0.00036987,120]
[424144279,1780609853000,-152.0,0.00036987,120]
[424144281,1780609853000,-994.29561143,0.00036987,120]
[424144276,1780609853000,-200.0,0.00036987,120]
[424144275,1780609853000,-151.0,0.00036987,120]
[424144272,1780609853000,-500.0,0.00036987,120]
[424144277,1780609853000,-200.0,0.00036987,120]
[424144267,1780609853000,-958.81929743,0.00036987,120]
[424144303,1780609853000,-151.0,0.00036987,120]
[424144282,1780609853000,-500.0,0.00036987,120]
[424144274,1780609853000,-831.51979762,0.00036987,120]
[424144280,1780609853000,-270.0455652,0.00036987,120]
[424144304,1780609853000,-200.0,0.00036987,120]
[424144283,1780609853000,-500.0,0.00036987,120]
[424144291,1780609853000,-200.0,0.00036987,120]
[424144289,1780609853000,-151.0,0.00036987,120]
[424144287,1780609853000,-217.15233878,0.00036987,120]
[424144285,1780609853000,-151.0,0.00036987,120]
[424144288,1780609853000,-862.28603014,0.00036987,120]
[424144284,1780609853000,-225.18697532,0.00036987,120]
[424144286,1780609853000,-500.0,0.00036987,120]
[424144293,1780609853000,-1031.08454906,0.00036987,120]
[424144292,1780609853000,-152.0,0.00036987,120]
[424144270,1780609853000,-151.0,0.00036987,120]
[424144290,1780609853000,-200.0,0.00036987,120]
[424144269,1780609853000,-217.15233878,0.00036987,120]
[424144243,1780609853000,-187.78006521,0.00036987,120]
[424144271,1780609853000,-500.0,0.00036987,120]
[424144253,1780609853000,-924.60877283,0.00036987,120]
[424144242,1780609853000,-200.0,0.00036987,120]
[424144244,1780609853000,-773.24136889,0.00036987,120]
[424144250,1780609853000,-251.11897888,0.00036987,120]
[424144249,1780609853000,-200.0,0.00036987,120]
[424144248,1780609853000,-152.0,0.00036987,120]
[424144246,1780609853000,-200.0,0.00036987,120]
[424144247,1780609853000,-151.0,0.00036987,120]
[424144245,1780609853000,-151.0,0.00036987,120]
[424144251,1780609853000,-500.0,0.00036987,120]
[424144252,1780609853000,-399.62246101,0.00036987,120]
[424144278,1780609853000,-151.0,0.00036987,120]
[424144254,1780609853000,-209.40437684,0.00036987,120]
[424144266,1780609853000,-260.4103811,0.00036987,120]
[424144265,1780609853000,-200.0,0.00036987,120]
[424144258,1780609853000,-500.0,0.00036987,120]
[424144256,1780609853000,-151.0,0.00036987,120]
[424144257,1780609853000,-500.0,0.00036987,120]
[424144263,1780609853000,-200.0,0.00036987,120]
[424144264,1780609853000,-152.0,0.00036987,120]
[424144259,1780609853000,-556.59266845,0.00036987,120]
[424144260,1780609853000,-801.85129954,0.00036987,120]
[424144262,1780609853000,-200.0,0.00036987,120]
[424144261,1780609853000,-151.0,0.00036987,120]
[424144255,1780609853000,-201.93286098,0.00036987,120]
[424144294,1780609853000,-266.39576586,0.00036987,120]
[424144268,1780609853000,-500.0,0.00036987,120]
[424144295,1780609853000,-151.0,0.00036987,120]
[424144324,1780609853000,-200.0,0.00036987,120]
[424144329,1780609853000,-500.0,0.00036987,120]
[424144333,1780609853000,-152.72135637,0.00036987,120]
[424144331,1780609853000,-997.16350561,0.00036987,120]
[424144332,1780609853000,-251.11897888,0.00036987,120]
[424144330,1780609853000,-500.0,0.00036987,120]
[424144338,1780609853000,-152.0,0.00036987,120]
[424144341,1780609853000,-241.37132186,0.00036987,120]
[424144337,1780609853000,-151.0,0.00036987,120]
[424144336,1780609853000,-500.0,0.00036987,120]
[424144340,1780609853000,-500.0,0.00036987,120]
[424144326,1780609853000,-500.0,0.00036987,120]
[424144339,1780609853000,-500.0,0.00036987,120]
[424144342,1780609853000,-151.0,0.00036987,120]
[424144344,1780609853000,-500.0,0.00036987,120]
[424144343,1780609853000,-500.0,0.00036987,120]
[424144346,1780609853000,-151.0,0.00036987,120]
[424144345,1780609853000,-152.0,0.00036987,120]
[424144350,1780609853000,-500.0,0.00036987,120]
[424144347,1780609853000,-500.0,0.00036987,120]
[424144349,1780609853000,-152.0,0.00036987,120]
[424144351,1780609853000,-304244.66874726,0.00036988,120]
[424144348,1780609853000,-151.0,0.00036987,120]
[424144298,1780609853000,-500.0,0.00036987,120]
[424144335,1780609853000,-151.0,0.00036987,120]
[424144327,1780609853000,-151.0,0.00036987,120]
[424144334,1780609853000,-200.0,0.00036987,120]